bitfinex/quotes_BTCUSD_20240620
["timestamp","ask_amount","ask_price","bid_price","bid_amount"]
[1718880187686,7.07739059,65906.0,65905.0,0.18106811]
[1718880187936,6.97688868,65906.0,65905.0,0.18106811]
[1718880188139,7.0771665,65906.0,65905.0,0.18106811]
[1718880188656,6.97688868,65906.0,65905.0,0.18106811]
[1718880190435,7.07691783,65906.0,65905.0,0.18106811]
[1718880190789,7.07691783,65906.0,65905.0,0.17446493]
[1718880190954,7.07691783,65906.0,65905.0,0.18106811]
[1718880191548,7.07725512,65906.0,65905.0,0.18106811]
[1718880192154,6.90801194,65906.0,65905.0,0.18106811]
[1718880192365,7.07665692,65906.0,65905.0,0.18106811]
[1718880192655,6.97594044,65906.0,65905.0,0.35816811]
[1718880196261,7.07690644,65906.0,65905.0,0.35816811]
[1718880196468,6.97594044,65906.0,65905.0,0.35816811]
[1718880196681,6.97594044,65906.0,65905.0,0.18106811]
[1718880197083,7.0764084,65906.0,65905.0,0.18106811]
[1718880199913,7.0758442,65906.0,65905.0,0.18106811]
[1718880200377,7.0764084,65906.0,65905.0,0.18106811]
[1718880201170,7.0758442,65906.0,65905.0,0.18106811]
[1718880201699,7.0764084,65906.0,65905.0,0.18106811]
[1718880202310,7.0758442,65906.0,65905.0,0.18106811]
[1718880202959,7.0764084,65906.0,65905.0,0.18106811]
[1718880203913,7.0758442,65906.0,65905.0,0.18106811]
[1718880204109,6.97537624,65906.0,65905.0,0.18106811]
[1718880205251,6.97537624,65906.0,65905.0,0.32187492]
[1718880205910,6.97537624,65906.0,65905.0,0.28116811]
[1718880206277,6.97594044,65906.0,65905.0,0.28116811]
[1718880208109,6.97537624,65906.0,65905.0,0.28116811]
[1718880210581,6.97594044,65906.0,65905.0,0.28116811]
[1718880212145,6.97643285,65906.0,65905.0,0.28116811]
[1718880214857,7.07773698,65906.0,65905.0,0.17446493]
[1718880215069,7.07773698,65906.0,65905.0,0.18106811]
[1718880215275,7.07773698,65906.0,65905.0,0.17446493]
[1718880215483,7.07770027,65906.0,65905.0,0.17446493]
[1718880216107,6.80712456,65906.0,65905.0,0.17446493]
[1718880216569,6.97222456,65906.0,65905.0,0.17446493]
[1718880218360,6.89572456,65906.0,65905.0,0.17446493]
[1718880218887,6.72599952,65906.0,65905.0,0.17446493]
[1718880219053,6.8938484,65906.0,65905.0,0.17446493]
[1718880219620,6.8937707,65906.0,65905.0,0.17446493]
[1718880219815,6.8937707,65906.0,65905.0,0.32619793]
[1718880220308,7.43126052,65906.0,65905.0,0.02190381]
[1718880220510,8.1347877,65906.0,65905.0,0.02190381]
[1718880220708,8.8003835,65906.0,65905.0,0.02190381]
[1718880221033,8.85034886,65906.0,65905.0,0.02190381]
[1718880221431,8.85034886,65906.0,65905.0,0.01190381]
[1718880221897,8.85034886,65906.0,65905.0,0.00490381]
[1718880222294,8.9885117,65906.0,65905.0,0.00590381]
[1718880222470,8.9885117,65906.0,65905.0,0.00090381]
[1718880222676,8.9915117,65906.0,65905.0,0.00090381]
[1718880222944,8.9935117,65906.0,65905.0,0.00090381]
[1718880223155,8.85687915,65906.0,65905.0,0.00090381]
[1718880223776,8.72058415,65906.0,65905.0,0.00090381]
[1718880225555,8.77918415,65906.0,65905.0,0.00090381]
[1718880227072,8.72058415,65906.0,65905.0,0.00090381]
[1718880227275,8.77918415,65906.0,65905.0,0.00090381]
[1718880229293,7.46407164,65906.0,65905.0,0.00090381]
[1718880229503,7.93699768,65906.0,65905.0,0.00090381]
[1718880229709,8.25228171,65906.0,65905.0,0.00090381]
[1718880231186,8.35228171,65906.0,65905.0,0.00090381]
[1718880232176,8.25228171,65906.0,65905.0,0.00090381]
[1718880233174,8.35228171,65906.0,65905.0,0.00090381]
[1718880233419,8.65574371,65906.0,65905.0,0.00090381]
[1718880233626,8.55574371,65906.0,65905.0,0.00090381]
[1718880233840,8.65574371,65906.0,65905.0,0.00090381]
[1718880234052,8.55574371,65906.0,65905.0,0.00090381]
[1718880234256,8.66936728,65906.0,65905.0,0.00090381]
[1718880234945,9.1157875,65906.0,65905.0,0.00090381]
[1718880237304,9.2157875,65906.0,65905.0,0.00090381]
[1718880239350,9.23165158,65906.0,65905.0,0.00090381]
[1718880240346,9.17305158,65906.0,65905.0,0.00090381]
[1718880240554,9.23391019,65906.0,65905.0,0.00090381]
[1718880242291,9.21274917,65906.0,65905.0,0.00090381]
[1718880242468,9.20828936,65906.0,65905.0,0.00090381]
[1718880242673,9.32631224,65906.0,65905.0,0.00090381]
[1718880242890,9.36219755,65906.0,65905.0,0.00090381]
[1718880243567,9.36219501,65906.0,65905.0,0.00090381]
[1718880243768,9.22475603,65906.0,65905.0,0.00090381]
[1718880243923,9.13390737,65906.0,65905.0,0.00090381]
[1718880244833,9.24747072,65906.0,65905.0,0.00090381]
[1718880245259,9.38688676,65906.0,65905.0,0.00090381]
[1718880248658,9.39146631,65906.0,65905.0,0.00090381]
[1718880250325,9.27790296,65906.0,65905.0,0.00090381]
[1718880250524,9.31587795,65906.0,65905.0,0.00090381]
[1718880251022,9.22397795,65906.0,65905.0,0.00090381]
[1718880251691,9.16537795,65906.0,65905.0,0.00090381]
[1718880251973,9.22397795,65906.0,65905.0,0.00090381]
[1718880253452,8.80694096,65906.0,65905.0,0.00090381]
[1718880253672,8.42187896,65906.0,65905.0,0.10270381]
[1718880253886,8.46461488,65906.0,65905.0,0.17950381]
[1718880254106,8.32534022,65906.0,65905.0,0.17950381]
[1718880254330,8.37077737,65906.0,65905.0,0.17950381]
[1718880255203,8.36777737,65906.0,65905.0,0.17950381]
[1718880255419,8.36778603,65906.0,65905.0,0.17950381]
[1718880255603,7.82874224,65906.0,65905.0,0.17950381]
[1718880255961,7.65107944,65906.0,65905.0,0.18050381]
[1718880256091,7.8291792,65906.0,65905.0,0.18050381]
[1718880256322,7.72513339,65906.0,65905.0,0.17950381]
[1718880256566,7.72513339,65906.0,65905.0,0.18850381]
[1718880256786,7.54257664,65906.0,65905.0,0.18850381]
[1718880257009,7.82650213,65906.0,65905.0,0.18850381]
[1718880257240,7.94634299,65906.0,65905.0,0.19550381]
[1718880257459,8.00494299,65906.0,65905.0,0.19550381]
[1718880257685,7.94634299,65906.0,65905.0,0.19550381]
[1718880257896,7.49114999,65906.0,65905.0,0.19550381]
[1718880258121,7.70148099,65906.0,65905.0,0.19550381]
[1718880258355,7.77306916,65906.0,65905.0,0.19550381]
[1718880259909,7.24231621,65906.0,65905.0,0.19550381]
[1718880260363,7.17412486,65906.0,65905.0,0.19550381]
[1718880261245,7.47419004,65906.0,65905.0,0.19550381]
[1718880261467,7.47419004,65906.0,65905.0,0.23022849]
[1718880261696,7.47419004,65906.0,65905.0,0.19550381]
[1718880261912,7.41559004,65906.0,65905.0,0.19550381]
[1718880262355,7.50651184,65906.0,65905.0,0.19550381]
[1718880262575,6.62737997,65906.0,65905.0,0.19550381]
[1718880263043,7.41550615,65906.0,65905.0,0.19550381]
[1718880263304,7.50627276,65906.0,65905.0,0.19550381]
[1718880264301,7.41527666,65906.0,65905.0,0.19550381]
[1718880266308,7.52893232,65906.0,65905.0,0.19550381]
[1718880266569,6.74080614,65906.0,65905.0,0.19550381]
[1718880266773,7.52893232,65906.0,65905.0,0.19550381]
[1718880270773,7.52989414,65906.0,65905.0,0.19550381]
[1718880272903,7.53329096,65906.0,65905.0,0.19550381]
[1718880273687,7.72300784,65906.0,65905.0,0.19550381]
[1718880273894,8.25419319,65906.0,65905.0,0.01690381]
[1718880274221,8.79776214,65906.0,65905.0,0.01690381]
[1718880274424,8.93425629,65906.0,65905.0,0.01690381]
[1718880275055,8.93425629,65906.0,65905.0,0.00990381]
[1718880275264,8.93525629,65906.0,65905.0,0.00090381]
[1718880275540,9.33448237,65906.0,65905.0,0.00090381]
[1718880275902,9.19798822,65906.0,65905.0,0.00090381]
[1718880276510,9.19693968,65906.0,65905.0,0.00090381]
[1718880276710,9.19593968,65906.0,65905.0,0.00090381]
[1718880276883,9.19693968,65906.0,65905.0,0.00090381]
[1718880277081,9.28018896,65906.0,65905.0,0.00090381]
[1718880277697,9.40218896,65906.0,65905.0,0.00090381]
[1718880277893,9.30218896,65906.0,65905.0,0.00090381]
[1718880278093,9.30718896,65906.0,65905.0,0.00090381]
[1718880278425,9.30218896,65906.0,65905.0,0.00090381]
[1718880279361,9.30618896,65906.0,65905.0,0.00090381]
[1718880279556,8.83831994,65906.0,65905.0,0.00090381]
[1718880279758,9.30303909,65906.0,65905.0,0.00090381]
[1718880279924,9.31303909,65906.0,65905.0,0.00190381]
[1718880280754,9.40354568,65906.0,65905.0,0.00090381]
[1718880281138,9.40354568,65906.0,65905.0,0.00190381]
[1718880281139,9.40954568,65906.0,65905.0,0.00190381]
[1718880289321,9.32964568,65906.0,65905.0,0.00190381]
[1718880289914,9.22934568,65906.0,65905.0,0.00190381]
[1718880290316,8.90288368,65906.0,65905.0,0.00190381]
[1718880290498,9.09806623,65906.0,65905.0,0.00190381]
[1718880291358,8.96148368,65906.0,65905.0,0.00190381]
[1718880291709,9.09765713,65906.0,65905.0,0.00190381]
[1718880292072,8.77963842,65906.0,65905.0,0.00190381]
[1718880292278,8.960757,65906.0,65905.0,0.00190381]
[1718880292506,8.96075887,65906.0,65905.0,0.00190381]
[1718880293729,9.09734703,65906.0,65905.0,0.00190381]
[1718880293908,9.09732577,65906.0,65905.0,0.00190381]
[1718880294046,8.96073779,65906.0,65905.0,0.00190381]
[1718880297449,9.43279979,65906.0,65905.0,0.00190381]
[1718880297673,9.55579979,65906.0,65905.0,0.00190381]
[1718880298433,9.45579979,65906.0,65905.0,0.00190381]
[1718880298630,9.55579979,65906.0,65905.0,0.00190381]
[1718880299439,9.45579979,65906.0,65905.0,0.00190381]
[1718880299675,9.55579979,65906.0,65905.0,0.00190381]
[1718880299810,9.60836091,65906.0,65905.0,0.00190381]
[1718880300017,9.70836091,65906.0,65905.0,0.00190381]
[1718880300383,9.45731405,65906.0,65905.0,0.00190381]
[1718880300604,9.35731405,65906.0,65905.0,0.00190381]
[1718880300870,9.45731405,65906.0,65905.0,0.00190381]
[1718880301080,12.93231405,65906.0,65905.0,0.00190381]
[1718880301310,12.23531405,65906.0,65905.0,0.00190381]
[1718880301518,12.23496457,65906.0,65905.0,0.00190381]
[1718880301733,1.06623902,65896.0,65895.0,0.0738]
[1718880301933,1.87289552,65896.0,65895.0,0.0738]
[1718880302164,1.97827932,65896.0,65895.0,0.0738]
[1718880302389,1.7590714,65896.0,65895.0,0.0738]
[1718880302572,1.87289388,65896.0,65895.0,0.0738]
[1718880302771,1.7590714,65896.0,65895.0,0.0738]
[1718880302947,1.7590714,65896.0,65895.0,0.0798]
[1718880303148,1.39356658,65896.0,65895.0,0.2053246]
[1718880303349,1.48461672,65896.0,65895.0,0.2053246]
[1718880303549,1.31051851,65896.0,65895.0,0.2053246]
[1718880303853,1.37880503,65896.0,65895.0,0.2053246]
[1718880304268,1.46005822,65896.0,65895.0,0.2053246]
[1718880304804,1.00517368,65896.0,65895.0,0.2053246]
[1718880304932,1.15655022,65896.0,65895.0,0.1879]
[1718880305137,1.07346033,65896.0,65895.0,0.1879]
[1718880305336,1.15655022,65896.0,65895.0,0.1879]
[1718880306461,1.07346033,65896.0,65895.0,0.1879]
[1718880306713,0.86080347,65896.0,65895.0,0.1879]
[1718880306842,0.77771358,65896.0,65895.0,0.1879]
[1718880307047,1.16431147,65896.0,65895.0,0.1879]
[1718880307293,1.31644293,65896.0,65895.0,0.013]
[1718880307506,1.5133663,65896.0,65895.0,0.013]
[1718880307918,1.97612819,65896.0,65895.0,0.013]
[1718880308289,1.50317039,65896.0,65895.0,0.013]
[1718880309325,1.80667839,65896.0,65895.0,0.013]
[1718880309542,1.82695488,65896.0,65895.0,0.013]
[1718880309743,1.72331731,65896.0,65895.0,0.013]
[1718880309993,1.82695488,65896.0,65895.0,0.013]
[1718880310174,1.72331731,65896.0,65895.0,0.013]
[1718880310348,1.52344688,65896.0,65895.0,0.013]
[1718880310549,1.41980931,65896.0,65895.0,0.013]
[1718880310734,1.72331731,65896.0,65895.0,0.013]
[1718880311370,1.41980931,65896.0,65895.0,0.013]
[1718880311766,1.72331731,65896.0,65895.0,0.013]
[1718880312017,1.72331731,65896.0,65895.0,0.1907]
[1718880315266,1.72328703,65896.0,65895.0,0.1907]
[1718880316025,1.41937528,65896.0,65895.0,0.1907]
[1718880316448,1.72288328,65896.0,65895.0,0.1907]
[1718880318916,1.41937528,65896.0,65895.0,0.1907]
[1718880319310,1.47797528,65896.0,65895.0,0.1907]
[1718880319746,1.47795447,65896.0,65895.0,0.1907]
[1718880320638,1.41595765,65896.0,65895.0,0.1907]
[1718880320852,1.58121064,65896.0,65895.0,0.1907]
[1718880321057,1.47795447,65896.0,65895.0,0.1907]
[1718880322933,1.41595765,65896.0,65895.0,0.1907]
[1718880323141,1.47455765,65896.0,65895.0,0.1907]
[1718880326489,1.41595765,65896.0,65895.0,0.1907]
[1718880327378,1.11244965,65896.0,65895.0,0.1907]
[1718880327591,1.11244965,65896.0,65895.0,0.21052492]
[1718880327592,0.80894165,65896.0,65895.0,0.21052492]
[1718880328016,0.80894165,65896.0,65895.0,0.2076774]
[1718880328226,0.80894165,65896.0,65895.0,0.1907]
[1718880328430,0.80894165,65896.0,65895.0,0.19730318]
[1718880328691,0.80894165,65896.0,65895.0,0.21428058]
[1718880328902,0.80894165,65896.0,65895.0,0.1907]
[1718880329295,0.80894165,65896.0,65895.0,0.19730318]
[1718880329504,0.80894165,65896.0,65895.0,0.2076774]
[1718880329645,0.80894165,65896.0,65895.0,0.19730318]
[1718880329848,0.80894165,65896.0,65895.0,0.21428058]
[1718880330051,0.80894165,65896.0,65895.0,0.19730318]
[1718880330274,0.54951361,65896.0,65895.0,0.21428058]
[1718880330497,0.64008221,65896.0,65895.0,0.401038]
[1718880330698,0.44894941,65896.0,65895.0,1.21922512]
[1718880330900,0.44894941,65896.0,65895.0,1.16062512]
[1718880330901,0.49451317,65896.0,65895.0,1.16062512]
[1718880331239,0.44894941,65896.0,65895.0,1.21922512]
[1718880331999,0.44894941,65896.0,65895.0,1.21437444]
[1718880332641,0.44894941,65896.0,65895.0,1.22437444]
[1718880332848,0.44894941,65896.0,65895.0,1.52788744]
[1718880334585,0.44894941,65896.0,65895.0,1.51788744]
[1718880337204,0.44894941,65896.0,65895.0,1.52788744]
[1718880338057,0.44975211,65896.0,65895.0,1.52788744]
[1718880339524,0.44973818,65896.0,65895.0,1.52788744]
[1718880339944,0.44973818,65896.0,65895.0,1.51788744]
[1718880339945,0.45885977,65896.0,65895.0,1.51788744]
[1718880340279,0.44973818,65896.0,65895.0,1.52788744]
[1718880341383,0.38668932,65896.0,65895.0,1.51788744]
[1718880341661,0.44973592,65896.0,65895.0,1.51788744]
[1718880342569,0.44973592,65896.0,65895.0,1.52788744]
[1718880344228,0.44973592,65896.0,65895.0,1.51788744]
[1718880344554,0.44973592,65896.0,65895.0,1.52788744]
[1718880344762,0.44973592,65896.0,65895.0,1.52188744]
[1718880344947,0.44973592,65896.0,65895.0,1.51488744]
[1718880345427,0.45073592,65896.0,65895.0,1.47028744]
[1718880345631,0.45073592,65896.0,65895.0,1.52888744]
[1718880349270,0.45073592,65896.0,65895.0,1.47028744]
[1718880349478,0.45073592,65896.0,65895.0,1.52888744]
[1718880351679,0.45985724,65896.0,65895.0,1.52888744]
[1718880352014,0.45073592,65896.0,65895.0,1.52888744]
[1718880352217,0.45127444,65896.0,65895.0,1.52888744]
[1718880352365,0.46039576,65896.0,65895.0,1.52888744]
[1718880352546,0.46046956,65896.0,65895.0,1.49388602]
[1718880353707,0.46034246,65896.0,65895.0,1.49388602]
[1718880354279,0.45122109,65896.0,65895.0,1.49388602]
[1718880357413,0.13591589,65896.0,65895.0,1.49388602]
[1718880357612,0.45115239,65896.0,65895.0,1.49388602]
[1718880359754,0.45171659,65896.0,65895.0,1.19037302]
[1718880360149,0.45115239,65896.0,65895.0,1.19037302]
[1718880360356,0.45115239,65896.0,65895.0,1.13177302]
[1718880363414,0.37928344,65896.0,65895.0,1.13177302]
[1718880363562,0.45127315,65896.0,65895.0,1.13177302]
[1718880366258,0.45154886,65896.0,65895.0,1.13177302]
[1718880366755,0.45154886,65896.0,65895.0,1.24396096]
[1718880368031,0.1521474,65896.0,65895.0,1.24396096]
[1718880368454,0.1521474,65896.0,65895.0,1.54747396]
[1718880369936,0.1521474,65896.0,65895.0,1.55747396]
[1718880370055,0.1521474,65896.0,65895.0,1.54747396]
[1718880370906,0.1521474,65896.0,65895.0,1.60607396]
[1718880371487,0.1521474,65896.0,65895.0,1.61607396]
[1718880371896,0.1521474,65896.0,65895.0,1.60607396]
[1718880372320,0.1521474,65896.0,65895.0,1.61607396]
[1718880372527,0.1521474,65896.0,65895.0,1.60607396]
[1718880373224,0.15206828,65896.0,65895.0,1.61607396]
[1718880374030,0.16118892,65896.0,65895.0,1.61607396]
[1718880374969,0.16118892,65896.0,65895.0,1.60307396]
[1718880375189,0.16118892,65896.0,65895.0,1.59207396]
[1718880375394,0.15206828,65896.0,65895.0,1.60607396]
[1718880376312,0.57241462,65905.0,65904.0,0.76528018]
[1718880376513,0.18803182,65905.0,65904.0,1.02571812]
[1718880376760,0.08318099,65905.0,65904.0,1.03798221]
[1718880377649,0.12866541,65905.0,65904.0,1.04998221]
[1718880377852,0.08318099,65905.0,65904.0,1.04998221]
[1718880378068,0.12866541,65905.0,65904.0,1.04998221]
[1718880378237,0.08318099,65905.0,65904.0,1.04998221]
[1718880378661,0.12866541,65905.0,65904.0,1.04998221]
[1718880378989,0.08318099,65905.0,65904.0,1.04998221]
[1718880379242,0.08318099,65905.0,65904.0,1.06398221]
[1718880383081,0.08318099,65905.0,65904.0,1.52625321]
[1718880383282,0.08318099,65905.0,65904.0,1.61245321]
[1718880384163,5.53778022,65906.0,65905.0,1.062134]
[1718880384370,5.60975059,65906.0,65905.0,1.38815271]
[1718880384770,5.53778022,65906.0,65905.0,1.38815271]
[1718880384989,5.53778022,65906.0,65905.0,1.37385244]
[1718880385213,5.53778022,65906.0,65905.0,1.38815271]
[1718880385649,5.53778022,65906.0,65905.0,1.40915271]
[1718880385852,5.53778022,65906.0,65905.0,1.42215271]
[1718880386382,5.64628439,65906.0,65905.0,1.52395271]
[1718880386790,5.64628439,65906.0,65905.0,1.58255271]
[1718880387411,5.64628439,65906.0,65905.0,1.57155271]
[1718880387996,5.64628439,65906.0,65905.0,1.66865271]
[1718880388613,5.64628439,65906.0,65905.0,1.65565271]
[1718880389460,5.64628439,65906.0,65905.0,1.66965271]
[1718880390406,5.64628439,65906.0,65905.0,1.61105271]
[1718880390604,5.64628439,65906.0,65905.0,1.66965271]
[1718880392294,5.64628439,65906.0,65905.0,1.61105271]
[1718880392503,5.64628439,65906.0,65905.0,1.60105271]
[1718880392679,5.64628439,65906.0,65905.0,1.66965271]
[1718880394143,5.64628439,65906.0,65905.0,1.61105271]
[1718880394588,5.64628439,65906.0,65905.0,1.66965271]
[1718880395611,5.64465706,65906.0,65905.0,1.66965271]
[1718880398211,5.64465706,65906.0,65905.0,1.65535244]
[1718880398418,5.64465706,65906.0,65905.0,1.66964658]
[1718880400560,5.64465706,65906.0,65905.0,1.44849244]
[1718880400782,5.64465706,65906.0,65905.0,1.50709244]
[1718880402330,5.64423326,65906.0,65905.0,1.50709244]
[1718880402881,5.64423326,65906.0,65905.0,1.44849244]
[1718880403086,5.64423326,65906.0,65905.0,1.26359244]
[1718880403307,5.64423326,65906.0,65905.0,1.32219244]
[1718880403510,5.71560265,65906.0,65905.0,1.32219244]
[1718880403912,5.71616685,65906.0,65905.0,1.26359244]
[1718880405138,5.71573371,65906.0,65905.0,1.26359244]
[1718880411337,5.82623371,65906.0,65905.0,0.19485526]
[1718880411567,6.56547464,65906.0,65905.0,0.04229414]
[1718880411782,6.5854718,65906.0,65905.0,0.028]
[1718880411995,6.68356481,65906.0,65905.0,0.028]
[1718880412202,6.32150281,65906.0,65905.0,0.028]
[1718880412404,6.62496481,65906.0,65905.0,0.028]
[1718880412609,6.62496481,65906.0,65905.0,0.014]
[1718880413028,0.0005642,65905.0,65904.0,0.000946]
[1718880413229,0.13771531,65905.0,65904.0,0.00754918]
[1718880413484,0.39108249,65905.0,65904.0,0.02703889]
[1718880414451,0.31110396,65905.0,65904.0,0.02703889]
[1718880414597,0.39110474,65905.0,65904.0,0.02043571]
[1718880414805,0.12631704,65905.0,65904.0,0.000946]
[1718880415221,0.04631626,65905.0,65904.0,0.011946]
[1718880416257,0.00080393,65905.0,65904.0,0.024946]
[1718880416562,0.04631626,65905.0,65904.0,0.024946]
[1718880416922,0.04631626,65905.0,65904.0,0.09859392]
[1718880417903,0.04631626,65905.0,65904.0,0.024946]
[1718880418219,0.04631626,65905.0,65904.0,0.03154918]
[1718880418424,0.04631626,65905.0,65904.0,0.024946]
[1718880419549,0.04631626,65905.0,65904.0,0.03154918]
[1718880419753,0.04631626,65905.0,65904.0,0.8381163]
[1718880419955,0.00080393,65905.0,65904.0,0.95813693]
[1718880420159,0.00080393,65905.0,65904.0,1.27589914]
[1718880422437,0.00080393,65905.0,65904.0,1.15587851]
[1718880423058,0.05205885,65905.0,65904.0,1.15587851]
[1718880423263,0.00080393,65905.0,65904.0,1.15587851]
[1718880424731,0.0358305,65905.0,65904.0,1.15587851]
[1718880425543,0.0358305,65905.0,65904.0,1.14287851]
[1718880425740,0.0358305,65905.0,65904.0,1.29537436]
[1718880426011,0.0358305,65905.0,65904.0,1.30937436]
[1718880426839,0.0358305,65905.0,65904.0,1.29837436]
[1718880426957,0.0358305,65905.0,65904.0,1.31237436]
[1718880429113,0.03586097,65905.0,65904.0,1.31237436]
[1718880430431,0.00080393,65905.0,65904.0,1.31237436]
[1718880430639,0.03589072,65905.0,65904.0,1.31237436]
[1718880431622,0.03589072,65905.0,65904.0,1.61584536]
[1718880432290,0.03589072,65905.0,65904.0,1.63584536]
[1718880433298,0.07729985,65905.0,65904.0,1.63584536]
[1718880434316,0.07729985,65905.0,65904.0,1.93931636]
[1718880434513,0.03508679,65905.0,65904.0,1.93931636]
[1718880440121,0.03508679,65905.0,65904.0,2.04131636]
[1718880440974,0.03508679,65905.0,65904.0,1.93931636]
[1718880441149,0.03508679,65905.0,65904.0,1.92531636]
[1718880441354,0.03508679,65905.0,65904.0,2.02731636]
[1718880441581,0.03508679,65905.0,65904.0,1.93931636]
[1718880442427,0.03508679,65905.0,65904.0,2.04131636]
[1718880442428,0.03508679,65905.0,65904.0,2.02731636]
[1718880442634,0.03508679,65905.0,65904.0,2.07731636]
[1718880442858,5.53778022,65906.0,65905.0,1.54420418]
[1718880443016,5.53778022,65906.0,65905.0,1.90591944]
[1718880443360,5.53778022,65906.0,65905.0,1.92020238]
[1718880443561,5.53778022,65906.0,65905.0,1.92220238]
[1718880443936,5.53778022,65906.0,65905.0,1.93620238]
[1718880444581,5.53778022,65906.0,65905.0,1.95020238]
[1718880445928,5.53778022,65906.0,65905.0,1.87760238]
[1718880446150,5.53778022,65906.0,65905.0,1.92220238]
[1718880446307,5.53778022,65906.0,65905.0,1.95020238]
[1718880446885,5.53778022,65906.0,65905.0,2.12520238]
[1718880447088,5.53778022,65906.0,65905.0,2.13920238]
[1718880453570,5.53778022,65906.0,65905.0,2.5919511]
[1718880453783,5.53778022,65906.0,65905.0,2.6919511]
[1718880454184,5.09988022,65906.0,65905.0,3.1554181]
[1718880454430,5.03807722,65906.0,65905.0,3.20072833]
[1718880454665,4.73461241,65906.0,65905.0,3.20072833]
[1718880454844,4.73461241,65906.0,65905.0,3.32676058]
[1718880455042,4.73461241,65906.0,65905.0,3.29847764]
[1718880455277,4.73461241,65906.0,65905.0,3.18671644]
[1718880455450,4.73461241,65906.0,65905.0,3.20071644]
[1718880455680,4.73461241,65906.0,65905.0,3.18671644]
[1718880456037,4.73461241,65906.0,65905.0,3.20071644]
[1718880456246,4.73461241,65906.0,65905.0,3.14140621]
[1718880456671,4.73461241,65906.0,65905.0,3.15540621]
[1718880457095,4.73461241,65906.0,65905.0,3.14140621]
[1718880457423,4.73461241,65906.0,65905.0,3.15540621]
[1718880457803,4.73461241,65906.0,65905.0,3.2814364]
[1718880458023,4.73461241,65906.0,65905.0,3.32674663]
[1718880458215,4.73461241,65906.0,65905.0,3.2814364]
[1718880458370,4.73461241,65906.0,65905.0,3.32674663]
[1718880458575,4.70061241,65906.0,65905.0,3.2814364]
[1718880459383,3.80052241,65906.0,65905.0,3.33903673]
[1718880459751,3.80052241,65906.0,65905.0,3.67555704]
[1718880459868,3.80052241,65906.0,65905.0,3.76617751]
[1718880460097,3.80052241,65906.0,65905.0,3.67555704]
[1718880460301,3.80052241,65906.0,65905.0,3.7519344]
[1718880460505,3.80052241,65906.0,65905.0,3.66155704]
[1718880460960,3.80052241,65906.0,65905.0,3.75193528]
[1718880461495,3.80052241,65906.0,65905.0,3.73793528]
[1718880461605,3.80052241,65906.0,65905.0,3.75193528]
[1718880461816,3.80052241,65906.0,65905.0,3.75288128]
[1718880462066,3.78652241,65906.0,65905.0,3.75283091]
[1718880462269,3.25420801,65906.0,65905.0,3.75397569]
[1718880462443,3.25420801,65906.0,65905.0,3.84433091]
[1718880462640,3.25420801,65906.0,65905.0,3.85833091]
[1718880463049,3.25420801,65906.0,65905.0,3.84433091]
[1718880463593,3.25420801,65906.0,65905.0,3.85833091]
[1718880464036,3.25420801,65906.0,65905.0,3.84433091]
[1718880464246,3.25420801,65906.0,65905.0,3.75397569]
[1718880464479,3.25420801,65906.0,65905.0,3.84433091]
[1718880464858,3.25420801,65906.0,65905.0,3.85833091]
[1718880465257,3.20449296,65906.0,65905.0,3.85833091]
[1718880466236,3.1611648,65906.0,65905.0,3.76797569]
[1718880467002,3.1611648,65906.0,65905.0,3.85825948]
[1718880467404,3.1611648,65906.0,65905.0,3.91739782]
[1718880467665,3.0731648,65906.0,65905.0,3.91739782]
[1718880467885,2.9607648,65906.0,65905.0,3.79137821]
[1718880468017,2.66505576,65906.0,65905.0,4.83852938]
[1718880468219,1.4327285,65906.0,65905.0,4.64952938]
[1718880468448,1.32902592,65906.0,65905.0,4.98938907]
[1718880468649,1.26258957,65906.0,65905.0,5.44227223]
[1718880468983,1.17458957,65906.0,65905.0,5.44221636]
[1718880469190,1.17458957,65906.0,65905.0,4.83999133]
[1718880469191,1.05758957,65906.0,65905.0,4.83999133]
[1718880469475,0.89377593,65906.0,65905.0,4.83999133]
[1718880469676,0.86678302,65906.0,65905.0,4.82599133]
[1718880469882,0.68018876,65906.0,65905.0,4.82599133]
[1718880470124,0.61949676,65906.0,65905.0,4.83999133]
[1718880470315,0.35098478,65906.0,65905.0,4.83999133]
[1718880470562,0.00863,65934.0,65933.0,2.04362418]
[1718880470778,0.00863,65934.0,65933.0,2.2777853]
[1718880470992,0.00863,65934.0,65933.0,2.29198121]
[1718880471382,0.09443,65934.0,65933.0,2.23338121]
[1718880471801,0.20043,65934.0,65933.0,2.14538121]
[1718880472621,0.20043,65934.0,65933.0,2.15938121]
[1718880473037,0.20043,65934.0,65933.0,2.11638121]
[1718880474001,0.20043,65934.0,65933.0,2.13638121]
[1718880474178,0.20043,65934.0,65933.0,2.11638121]
[1718880474384,0.20043,65934.0,65933.0,2.13638121]
[1718880475144,0.20043,65934.0,65933.0,1.76304321]
[1718880475561,0.20043,65934.0,65933.0,1.78304321]
[1718880476194,0.13510248,65950.0,65944.0,0.15824618]
[1718880476399,0.22167179,65949.0,65945.0,0.15256112]
[1718880476600,0.0586,65946.0,65945.0,0.16673577]
[1718880476809,0.0936296,65946.0,65945.0,0.16673577]
[1718880477207,0.12954485,65946.0,65945.0,0.16673577]
[1718880477385,0.12934485,65946.0,65945.0,0.16673577]
[1718880479184,0.3197231,65946.0,65945.0,0.16673577]
[1718880479389,0.3197231,65946.0,65945.0,0.18073577]
[1718880480272,0.3197231,65946.0,65945.0,0.19473577]
[1718880480692,0.4713621,65946.0,65945.0,0.19473577]
[1718880481351,0.3197231,65946.0,65945.0,0.19473577]
[1718880481552,0.4713621,65946.0,65945.0,0.19473577]
[1718880481673,0.3197231,65946.0,65945.0,0.19473577]
[1718880481872,0.4713621,65946.0,65945.0,0.19473577]
[1718880482117,0.4713621,65946.0,65945.0,0.18056112]
[1718880482530,0.7746401,65946.0,65945.0,0.19472775]
[1718880482802,0.7746401,65946.0,65945.0,0.18056112]
[1718880483005,0.4713621,65946.0,65945.0,0.19472775]
[1718880485975,1.0779181,65946.0,65945.0,0.04216663]
[1718880486176,1.09131492,65946.0,65945.0,0.04216663]
[1718880486383,1.09131492,65946.0,65945.0,0.028]
[1718880486584,0.78803692,65946.0,65945.0,0.028]
[1718880487868,0.7746401,65946.0,65945.0,0.028]
[1718880488200,0.78803692,65946.0,65945.0,0.028]
[1718880488401,1.09131492,65946.0,65945.0,0.028]
[1718880489037,1.39459292,65946.0,65945.0,0.028]
[1718880489443,1.39459292,65946.0,65945.0,0.014]
[1718880489642,0.2554,65939.0,65937.0,0.00660318]
[1718880489850,0.2554,65939.0,65938.0,0.15256112]
[1718880490052,0.3840168,65939.0,65938.0,0.15256112]
[1718880491045,0.3840168,65939.0,65938.0,0.16656112]
[1718880492594,0.3840168,65939.0,65938.0,0.18056112]
[1718880493509,0.3138,65939.0,65938.0,0.18056112]
[1718880493711,0.38426871,65939.0,65938.0,0.18056112]
[1718880494633,0.38426871,65939.0,65938.0,0.9454513]
[1718880494634,0.32586871,65939.0,65938.0,0.9454513]
[1718880494865,0.38426871,65939.0,65938.0,0.9454513]
[1718880495084,0.38512871,65939.0,65938.0,0.9454513]